Cogmind - Beta 16.1 @@@ ROGUE MODE // 2026.04.10 @ 00:40:58 Player: Maelyn Result: Destroyed self with YOLO Cannon Performance ------------- Evolutions (1) 500 Regions Visited (6) 1200 Robots Destroyed (98) 490 Value Destroyed (1974) 1974 Prototype IDs (26) 520 Alien Tech Used (0) 0 Bonus (566) 566 TOTAL SCORE: 5250 Bonus ------- High Alert Combat Kills 94 Follower Combat Kills 172 Aligned with FarCom 300 Cogmind --------- Core Integrity 0/400 Matter 449/500 Energy 182/280 System Corruption 1% Temperature Cool (44) Movement Walking (100) Location -8/Mines Parts ------- > --- POWER (1) -------- Heavy Ion Engine > --- PROPULSION (3) --- Aluminum Leg Potential Leg Potential Leg > --- UTILITY (3) ------ Large Storage Unit High-capacity Matter Pod Improved Targeting Computer > --- WEAPON (2) ------- YOLO Cannon > --- INVENTORY (15) --- Armored Wheel Armored Wheel Combat Airjet Combat Airjet Medium Storage Unit Recoil Stabilizer ECM Suite ECM Suite Medium Armor Plating Shield Generator Slug Cannon Grenade Launcher Rocket Launcher Peak State ------------ > --- POWER ------------ Heavy Ion Engine > --- PROPULSION ------- Aluminum Leg Potential Leg Potential Leg > --- UTILITY ---------- Large Storage Unit High-capacity Matter Pod Improved Targeting Computer > --- WEAPON ----------- YOLO Cannon > --- INVENTORY -------- Armored Wheel Armored Wheel Combat Airjet Combat Airjet Medium Storage Unit Recoil Stabilizer ECM Suite ECM Suite Medium Armor Plating Shield Generator Slug Cannon Grenade Launcher Rocket Launcher [Rating: 51] Favorites ----------- Power Heavy Ion Engine Engine Heavy Ion Engine Power Core Light Nuclear Core Propulsion Aluminum Leg Treads Light Treads Leg Aluminum Leg Wheel Armored Wheel Utility Large Storage Unit Device Seismic Detector Storage Large Storage Unit Processor Improved Targeting Computer Weapon Beam Cannon Energy Cannon Beam Cannon Ballistic Gun Assault Rifle Ballistic Cannon Light Cannon Launcher Grenade Launcher Build | -11 -10 -10 -9 -9 -9 -8 ------- Run | Yrd Mat Min Mat Min Exi Min Slots Evolved 2 | . . . 2 . . . Power . | . . . . . . . Propulsion 1 | . . . 1 . . . Utility 1 | . . . 1 . . . Weapon . | . . . . . . . Parts Attached 49 | 8 2 7 22 6 4 . Power 8 | 1 1 1 5 . . . Engine 7 | 1 1 . 5 . . . Core 1 | . . 1 . . . . Reactor . | . . . . . . . Propulsion 21 | 2 . 2 10 4 3 . Treads 4 | 2 . . 2 . . . Leg 13 | . . 2 8 . 3 . Wheel 4 | . . . . 4 . . Hover . | . . . . . . . Flight . | . . . . . . . Utility 7 | 2 1 2 2 . . . Device 2 | 1 . . 1 . . . Storage 4 | 1 1 2 . . . . Processor 1 | . . . 1 . . . Hackware . | . . . . . . . Protection . | . . . . . . . Artifact . | . . . . . . . Weapon 13 | 3 . 2 5 2 1 . Energy Gun . | . . . . . . . Energy Cannon 3 | . . 2 . . 1 . Ballistic Gun 6 | 3 . . 2 1 . . Ballistic Cannon 3 | . . . 2 1 . . Launcher 1 | . . . 1 . . . Special Weapon . | . . . . . . . Impact Weapon . | . . . . . . . Slashing Weapon . | . . . . . . . Piercing Weapon . | . . . . . . . Special Melee Weapon . | . . . . . . . Unidentified Prototypes 3 | . . . 3 . . . Parts Lost 13 | . 1 3 7 2 . . Power 2 | . . . 2 . . . Propulsion 4 | . . 1 2 1 . . Utility 1 | . 1 . . . . . Weapon 6 | . . 2 3 1 . . Highest Loss Streak 4 | . 1 3 4 1 . . To Critical Strikes . | . . . . . . . Average Backups 12 | 3 9 9 13 15 14 13 Power . | 1 . . . 1 . . Propulsion 2 | 1 2 . 1 3 4 4 Utility 4 | . 2 3 6 7 6 6 Weapon 4 | 1 3 5 5 2 2 3 Tool/Special . | . . . . . . . Unused Backups 16 | . . . 6 1 1 8 Power 1 | . . . 1 . . . Propulsion 4 | . . . 2 . . 2 Utility 6 | . . . . . 1 5 Weapon 5 | . . . 3 1 . 1 Tool/Special . | . . . . . . . Average Slot Usage (%) 94 | . 94 92 93 96 94 88 Engine 9 | . 13 3 7 11 11 11 Core 2 | . . 10 2 . . . Treads 7 | . 28 6 1 . . . Leg 15 | . . 20 29 . 14 33 Wheel 7 | . . . . 30 18 . Device 3 | . 9 . 4 . . . Storage 19 | . 14 27 17 22 22 22 Processor 6 | . . . 9 11 11 11 Energy Cannon 6 | . . 18 10 . 4 11 Ballistic Gun 11 | . 28 4 2 18 6 . Ballistic Cannon 3 | . . . 7 3 6 . Peak Build Rating 51 | 7 8 10 19 21 51 51 Average Rating 15 | 4 7 8 14 18 34 51 On Entrance 15 | . 7 7 10 15 21 51 Avg Prop Armor Cover (%) . | . . . . . . . Naked Turns . | . . . . . . . Heaviest Build 50 | 15 30 37 37 42 50 50 Greatest Support 70 | 40 40 40 40 34 70 70 Greatest Overweight (x) 2 | . . 1 2 1 1 . Average Overweight (x) . | . . . . 1 . . Largest Inventory Capacity 15 | 8 15 15 15 15 15 15 Average Capacity 14 | 7 12 15 15 15 15 15 Most Carried 15 | 7 12 14 15 15 15 13 Average Carried 12 | 4 9 9 13 14 14 13 Final Capacity 15 | 8 15 15 15 15 15 15 Final Carried 15 | 4 12 10 15 15 13 13 Class Distribution -------------------- 95% | Mutant 4% | Scavenger-Mutant Dominant Class ---------------- Mutant | -10/Materials Mutant | -10/Mines Mutant | -9/Materials Mutant | -9/Mines Mutant | -9/Exiles Mutant | -8/Mines Resources | -11 -10 -10 -9 -9 -9 -8 ----------- Run | Yrd Mat Min Mat Min Exi Min Matter Collected 1873 | 274 326 314 325 634 . . Remotely . | . . . . . . . Salvage Created 2695 | 29 613 231 1376 431 . 15 Parts 198 | 2 46 9 99 39 . 3 Haulers Intercepted 6 | . 2 . 4 . . . Recyclers Shooed 2 | . 1 . . 1 . . Parts Field Recycled . | . . . . . . . Retrieved Matter . | . . . . . . . Parts Self-Destructed . | . . . . . . . Prevented . | . . . . . . . Parts Restored . | . . . . . . . Kills | -11 -10 -10 -9 -9 -9 -8 ------- Run | Yrd Mat Min Mat Min Exi Min Combat Hostiles Destroyed 73 | . 14 8 35 13 . 3 Guns 33 | . 14 3 3 13 . . Cannons 31 | . . 5 26 . . . AOE 8 | . . . 5 . . 3 Classes Destroyed 11 | 1 6 . 4 . . . Worker 3 | . 2 . . 1 . . Builder 1 | . . . 1 . . . Tunneler 6 | 1 . . . 5 . . Hauler 6 | . 2 . 4 . . . Recycler 3 | . 1 . 2 . . . Operator 1 | . . . 1 . . . Watcher 5 | . 2 . 3 . . . Swarmer 37 | . 9 4 11 10 . 3 Grunt 28 | . 5 4 16 3 . . Brawler 1 | . . . 1 . . . Sentry 7 | . . . 7 . . . Best Kill Streak 6 | 1 4 3 6 4 . 3 Combat Bots Only 6 | . 3 3 6 4 . 3 Max Kills in Single Turn 4 | 1 2 1 4 2 . 2 Gunslinging 1 | . 1 . 1 1 . . Exploded 4 | . . . 4 . . 2 Melee . | . . . . . . . Uniques/NPCs Destroyed . | . . . . . . . Combat | -11 -10 -10 -9 -9 -9 -8 -------- Run | Yrd Mat Min Mat Min Exi Min Hostile Shots Fired 319 | . 68 52 157 35 . 7 Missed 101 | . 24 17 55 4 . 1 Hits 218 | . 44 35 102 31 . 6 Projectile 218 | . 44 35 102 31 . 6 Critical Strikes 4 | . . 3 1 . . . Damage Taken 2534 | . 434 325 1332 328 . 115 Core 520 | . 70 50 290 46 . 64 Absorbed by Shields . | . . . . . . . Core Remaining (%) 76 | 100 . 52 . . . . Volleys Fired 210 | 2 44 22 102 37 . 3 Largest 2 | 2 2 2 2 2 . 1 Hottest 120 | 40 40 120 120 43 . 100 Shots Fired 401 | 4 88 40 194 72 . 3 Gun 205 | 4 88 21 20 72 . . Cannon 195 | . . 19 173 . . 3 Launcher 1 | . . . 1 . . . Special . | . . . . . . . Kinetic 322 | 4 88 21 137 72 . . Thermal 78 | . . 19 56 . . 3 Explosive 1 | . . . 1 . . . Electromagnetic . | . . . . . . . Robot Hit Streak 14 | 2 10 4 14 13 . . Robot Miss Streak 5 | 1 5 4 3 2 . . Penetration Max . | . . . . . . . Secondary Targets 8 | . 5 . 1 2 . . Max Gunslinging Chain 1 | . 1 . 1 1 . . Shots Hit Robots 242 | 3 48 21 117 53 . . Core Hits 121 | 1 26 11 53 26 . 4 Critical Kills 1 | . 1 . . . . . Critical Parts Destroyed . | . . . . . . . Critical Strikes 2 | . 1 . 1 . . . Destroy 1 | . 1 . . . . . Blast 1 | . . . 1 . . . Melee Attacks . | . . . . . . . Impact . | . . . . . . . Slashing . | . . . . . . . Piercing . | . . . . . . . Sneak Attacks . | . . . . . . . Combat Hostiles . | . . . . . . . Follow-up Attacks . | . . . . . . . Damage Inflicted 4468 | 36 652 325 2527 697 . 231 Guns 1660 | 36 652 141 167 664 . . Cannons 2099 | . . 184 1915 . . . Explosions 674 | . . . 443 . . 231 Melee . | . . . . . . . Ramming 35 | . . . 2 33 . . Kinetic 2899 | 36 652 141 1406 664 . . Thermal 1357 | . . 184 942 . . 231 Explosive 177 | . . . 177 . . . Electromagnetic . | . . . . . . . Impact . | . . . . . . . Slashing . | . . . . . . . Piercing . | . . . . . . . Highest Corruption 5 | . 5 5 . 1 1 1 Average Corruption 3 | . 4 5 . 1 1 1 Corruption Purged . | . . . . . . . Corruption Blocked . | . . . . . . . Effects 32 | . 16 12 . 1 3 . Message Errors 6 | . 1 5 . . . . Matter Fused 9 | . 5 2 . . 2 . Heat Flow Errors 8 | . 4 3 . . 1 . Energy Discharges 4 | . 2 2 . . . . Parts Rejected 1 | . 1 . . . . . Parts Fused 1 | . 1 . . . . . Data Loss (minor) 1 | . 1 . . . . . Alerts 2 | . 1 . . 1 . . Overload Shots . | . . . . . . . Overflow Damage 218 | . . . 218 . . . Projectiles 32 | . . . 32 . . . Explosions 186 | . . . 186 . . . Melee . | . . . . . . . Knockbacks 8 | . . . 8 . . . Impact . | . . . . . . . Kinetic 8 | . . . 8 . . . Secondary . | . . . . . . . Self-Inflicted Damage 275 | . . . 195 16 . 64 Shots 3 | . . . 2 . . 1 Rammed 3 | . . . . 3 . . Targets Rammed 6 | . . 1 2 3 . . Kicked 3 | . . 1 2 . . . Crushed . | . . . . . . . Highest Temperature 358 | . 260 288 358 15 109 24 Average Temperature 81 | . 109 92 76 7 61 13 Received Heat Transfer 768 | . 126 99 444 99 . . Siege Activations . | . . . . . . . Martial Activations . | . . . . . . . Shielding Activations . | . . . . . . . Robots Disrupted . | . . . . . . . Combat Hostiles . | . . . . . . . Robots Corrupted . | . . . . . . . Combat Hostiles . | . . . . . . . Parts Fried . | . . . . . . . Impact Corruptions . | . . . . . . . Robots Melted 1 | . . . 1 . . . Combat Hostiles 1 | . . . 1 . . . Parts Melted 5 | . . 2 2 . . 1 Heat Transferred 2246 | . . 370 1556 . . 320 Parts Sabotaged . | . . . . . . . Parts Stolen . | . . . . . . . Parts Stripped . | . . . . . . . Power Chain Reactions . | . . . . . . . Alert | -11 -10 -10 -9 -9 -9 -8 ------- Run | Yrd Mat Min Mat Min Exi Min Maximum Alert Level 2 | . . . 2 1 . . Low Security (%) 63 | 100 100 100 53 . . 100 Level 1 22 | . . . 14 100 . . Level 2 13 | . . . 32 . . . Level 3 . | . . . . . . . Level 4 . | . . . . . . . Level 5 . | . . . . . . . High Security . | . . . . . . . Max Security . | . . . . . . . Peak Influence 692 | 5 111 78 692 389 . 93 Initial 263 | . . 4 12 263 . . Average 177 | . 39 22 272 321 . 16 Influence Increases 2369 | 5 396 254 1254 360 . 100 Destroy 0b10 Robot/C 1620 | . 280 200 820 260 . 60 Destroy 0b10 Robot/NC 125 | 5 35 . 55 30 . . Destroy Leader 352 | . 58 40 204 40 . 10 Allied During Kill 38 | . . 14 24 . . . Successful Hack 13 | . 7 . 6 . . . Disable Machine 90 | . . . 90 . . . Destroy Structure 71 | . 1 . 40 . . 30 Lose Combat Pursuer 60 | . 15 . 15 30 . . Influence Decreases 2269 | 5 383 235 610 751 285 . Entered New Map 727 | . . 9 20 413 285 . Time Decay 1372 | 5 373 196 480 318 . . Lost Part 130 | . 10 30 70 20 . . Lost Ally 40 | . . . 40 . . . Squads Dispatched 10 | . 4 . 6 . . . Investigation 7 | . 4 . 3 . . . Extermination . | . . . . . . . Reinforcement 2 | . . . 2 . . . Assault 1 | . . . 1 . . . Garrison . | . . . . . . . Intercept . | . . . . . . . Searches Triggered . | . . . . . . . Construction Impeded . | . . . . . . . Haulers Reinforced . | . . . . . . . Active Scanning Responses . | . . . . . . . Cargo Convoy Interrupts . | . . . . . . . Stealth | -11 -10 -10 -9 -9 -9 -8 --------- Run | Yrd Mat Min Mat Min Exi Min Distress Signals 6 | . . . 6 . . . Communications Jammed . | . . . . . . . Distress Signals . | . . . . . . . Times Spotted 109 | . 23 10 59 15 . 2 Peak Tracking Total 7 | . 7 3 6 4 . 2 Tactical Retreats 4 | . 1 . 1 2 . . Traps | -11 -10 -10 -9 -9 -9 -8 ------- Run | Yrd Mat Min Mat Min Exi Min Traps Triggered 8 | . 6 . 2 . . . Indirectly . | . . . . . . . Trap Hack Attempts . | . . . . . . . Triggered . | . . . . . . . Disarmed . | . . . . . . . Reprogrammed . | . . . . . . . Reused . | . . . . . . . Traps Extracted . | . . . . . . . Installed . | . . . . . . . Triggered . | . . . . . . . Machines | -11 -10 -10 -9 -9 -9 -8 ---------- Run | Yrd Mat Min Mat Min Exi Min Machines Disabled 6 | . . . 6 . . . Max in Single Turn 3 | . . . 3 . . . Machines Repaired . | . . . . . . . Machines Dismantled . | . . . . . . . Machines Sabotaged . | . . . . . . . Overloaded Fab Kills . | . . . . . . . Hacking | -11 -10 -10 -9 -9 -9 -8 --------- Run | Yrd Mat Min Mat Min Exi Min Machines Accessed 6 | . 3 . 2 . 1 . Terminals 5 | . 3 . 2 . . . Fabricators . | . . . . . . . Repair Stations . | . . . . . . . Recycling Units . | . . . . . . . Scanalyzers . | . . . . . . . Garrison Access . | . . . . . . . Total Hacks 13 | . 7 . 5 . 1 . Successful 6 | . 3 . 2 . 1 . Failed 7 | . 4 . 3 . . . Catastrophic 2 | . 1 . 1 . . . Database Lockouts . | . . . . . . . Manual 9 | . 4 . 3 . 2 . Terminals 12 | . 7 . 5 . . . Fabricators . | . . . . . . . Repair Stations . | . . . . . . . Recycling Units . | . . . . . . . Scanalyzers . | . . . . . . . Garrison Access . | . . . . . . . Terminal Hacks 6 | . 3 . 2 . 1 . Robot Analysis 3 | . 2 . 1 . . . Branch Access Points 2 | . 1 . 1 . . . Proto ID Catalog 1 | . . . . . 1 . Fabricator Hacks . | . . . . . . . Repair Station Hacks . | . . . . . . . Recycling Unit Hacks . | . . . . . . . Scanalyzer . | . . . . . . . Garrison Access Hacks . | . . . . . . . Unauthorized Hacks . | . . . . . . . Terminals . | . . . . . . . Fabricators . | . . . . . . . Repair Stations . | . . . . . . . Recycling Units . | . . . . . . . Scanalyzers . | . . . . . . . Garrison Access . | . . . . . . . Data Cores Recovered . | . . . . . . . Used . | . . . . . . . Hacking Detections 4 | . 2 . 2 . . . Full Trace Events 3 | . 2 . 1 . . . Feedback Events . | . . . . . . . Feedback Blocked . | . . . . . . . Robot Schematics Acquired . | . . . . . . . Robots Built . | . . . . . . . Authchips . | . . . . . . . Time . | . . . . . . . Total Robot Build Rating . | . . . . . . . Part Schematics Acquired . | . . . . . . . Parts Built . | . . . . . . . Authchips . | . . . . . . . Time . | . . . . . . . Total Part Build Rating . | . . . . . . . Part Studies Acquired . | . . . . . . . Parts Repaired . | . . . . . . . Time . | . . . . . . . Parts Recycled . | . . . . . . . Recycled Matter . | . . . . . . . Retrieved Matter . | . . . . . . . Retrieved Components . | . . . . . . . Parts Scanalyzed . | . . . . . . . Part Schematics Acquired . | . . . . . . . Parts Damaged . | . . . . . . . Bothacking | -11 -10 -10 -9 -9 -9 -8 ------------ Run | Yrd Mat Min Mat Min Exi Min Used RIF Installer . | . . . . . . . Robots Hacked . | . . . . . . . Non-combat . | . . . . . . . Combat . | . . . . . . . Robot Hacks Applied . | . . . . . . . Relay Couplers Released . | . . . . . . . Fabnet Peak Effective % . | . . . . . . . Robots Rewired . | . . . . . . . Allies Hacked . | . . . . . . . Hacks Repelled . | . . . . . . . Allies | -11 -10 -10 -9 -9 -9 -8 -------- Run | Yrd Mat Min Mat Min Exi Min Total Allies 2 | . . 2 . . . . Largest Group 2 | . . 2 2 . . . Highest-Rated Group 42 | . . 42 42 . . . Highest-Rated Ally 31 | . . 31 31 . . . Total Orders . | . . . . . . . Ally Attacks 22 | . . 3 19 . . . Total Damage 232 | . . 42 190 . . . Kills 8 | . . 2 6 . . . Allies Corrupted . | . . . . . . . Allies Melted . | . . . . . . . Intel | -11 -10 -10 -9 -9 -9 -8 ------- Run | Yrd Mat Min Mat Min Exi Min Active Infowar (turns) 689 | 27 662 . . . . . Seismic 689 | 27 662 . . . . . Robot Analysis Total 3 | . 2 . 1 . . . Derelict Logs Recovered 2 | . . 1 . 1 . . Drone Launches . | . . . . . . . Drone Recoveries . | . . . . . . . Exploration | -11 -10 -10 -9 -9 -9 -8 ------------- Run | Yrd Mat Min Mat Min Exi Min Turns Passed 4810 | 109 990 643 1677 715 639 37 Spaces Moved 2948 | 59 530 299 822 586 623 29 Core 9 | 9 . . . . . . Treads 693 | 50 530 67 46 . . . Legs 1321 | . . 232 776 . 284 29 Wheels 925 | . . . . 586 339 . Hover . | . . . . . . . Flight . | . . . . . . . Fastest Speed 50 | 50 160 160 120 101 100 100 Average Speed 137 | 143 160 189 160 101 100 100 Slowest Speed 260 | 160 160 240 260 105 101 100 Overloaded Moves . | . . . . . . . Propulsion Burnouts . | . . . . . . . Robots Hopped . | . . . . . . . Potential Cave-ins . | . . . . . . . Cave-ins Triggered . | . . . . . . . Exploration Rate (%) 57 | 4 79 63 79 89 79 12 Regions Visited 6 Branch Regions 4 Pre-discovered Areas . | . . . . . . . Known Exits Taken 2 | . 1 . 1 . . . Unknown Exits Taken 4 | 1 . 1 . 1 1 . Scrap Searched 2 | . . 1 . 1 . . Spaces Dug . | . . . . . . . Terrain Destroyed 85 | . . . 36 . . 49 Melee . | . . . . . . . Projectile 3 | . . . . . . 3 AOE 82 | . . . 36 . . 46 Terrain Rammed . | . . . . . . . Walls Destroyed . | . . . . . . . Machines Disabled . | . . . . . . . Actions | -11 -10 -10 -9 -9 -9 -8 --------- Run | Yrd Mat Min Mat Min Exi Min Total 3306 | 79 584 335 1000 639 637 32 Wait 1 | . . . . . 1 . Move 2942 | 58 529 298 821 585 622 29 Hop . | . . . . . . . Pick Up 60 | 11 9 5 28 4 3 . Fast Attach 5 | . . . 2 3 . . Attach 23 | 7 1 4 10 . 1 . Detach 1 | . . . . . 1 . Swap 25 | 1 1 3 14 3 3 . Drop 33 | . . 2 21 4 6 . Fire 210 | 2 44 22 102 37 . 3 Melee . | . . . . . . . Ram 3 | . . . . 3 . . Kick 3 | . . 1 2 . . . Crush . | . . . . . . . Escape Stasis . | . . . . . . . Rewire . | . . . . . . . Trap . | . . . . . . . Miscellaneous . | . . . . . . . Route ------- -11/Scrapyard -10/Materials (discovered 4 exits: *Mat / *Min x2 / [*Sub]) -10/Mines (discovered 2 exits: *Mat x2) -9/Materials (discovered 3 exits: [*Mat x2] / *Min) -9/Mines (discovered 3 exits: [*Mat x2] / *Exi) -9/Exiles (discovered 2 exits: [*Min x2]) -8/Mines History --------- Turn | Location | Event 7 | -11/Scrapyard | Discovered new exit (range 16) 110 | -11/Scrapyard | Entered Materials 301 | -10/Materials | Build established: Mutant 445 | -10/Materials | Discovered new exit (range 11) 457 | -10/Materials | Discovered new exit (range 16) 733 | -10/Materials | Identified exit to Mines 1100 | -10/Materials | Entered Mines 1246 | -10/Mines | Lost 3 parts (1n2w) 1357 | -10/Mines | Found a hidden stash of uninstalled traps 1664 | -10/Mines | Discovered new exit (range 5) 1675 | -10/Mines | Received a Rocket Launcher from a helpful Derelict 1677 | -10/Mines | Discovered new exit (range 6) 1743 | -10/Mines | Entered Materials 1743 | -9/Materials | Accompanied by 2 allies 1743 | -9/Materials | Evolved 2 slots: Propulsion x1, Utility x1 1748 | -9/Materials | Led the pair of lost Derelicts to an unsafe place 1771 | -9/Materials | Identified exit to Mines 2721 | -9/Materials | Discovered new exit (range 12) 2969 | -9/Materials | Core integrity fell below 50% 2999 | -9/Materials | Lost 4 parts (1p2n1w) 3064 | -9/Materials | Discovered new exit (range 14) 3343 | -9/Materials | First assault squad dispatched 3420 | -9/Materials | Entered Mines 3434 | -9/Mines | Met a Derelict bent on vengeance 3478 | -9/Mines | Learned Materials terminal intel 3515 | -9/Mines | Core integrity fell below 20% 3570 | -9/Mines | Assembled infested the area 3864 | -9/Mines | Discovered new exit (range 15) 3907 | -9/Mines | Discovered new exit (range 7) 3927 | -9/Mines | A weapon hastily lodged in a ceiling crevice suddenly fell to the ground 4129 | -9/Mines | Discovered new exit (range 5) 4135 | -9/Mines | Entered Exiles 4160 | -9/Exiles | Met 8R-AWN 4177 | -9/Exiles | Met EX-HEX 4224 | -9/Exiles | Met EX-DEC 4244 | -9/Exiles | Visited The Gauntlet 4359 | -9/Exiles | Discovered new exit (range 14) 4419 | -9/Exiles | Met EX-BIN 4436 | -9/Exiles | Aligned with FarCom system 4437 | -9/Exiles | Given EX-Vault access code 4468 | -9/Exiles | Opened EX-Vault 4479 | -9/Exiles | Found Potential Leg 4481 | -9/Exiles | Found Potential Leg 4493 | -9/Exiles | Found YOLO Cannon 4516 | -9/Exiles | Warned to stay clear of 0b10 Research branches 4760 | -9/Exiles | Discovered new exit (range 14) 4774 | -9/Exiles | Stole two prototypes: YOLO Cannon, Potential Leg 4774 | -9/Exiles | Entered Mines 4811 | -8/Mines | Destroyed self with YOLO Cannon Last Messages --------------- 04500_ System corrupted: Heat flow error (+128). EX-BIN: Oh yeah, I'd suggest you stay away from the 0b10 Research branches, since the FarCom signals could be picked up there, but you're welcome to try if you really want to. And if we have to leave here due to unforeseen circumstances, don't worry the FarCom system will continue to maintain contact via our distributed network. EX-BIN: And don't even think about spreading that code around. We're gonna change it right after you leave. Most certainly not to something like 1234 which I did last time as a little joke and some thief managed to sneak in here and steal a few of HEX's prototypes. 04613_ System corrupted: Matter fused (-5). 04760_ EXIT=FOUND LOCATION=UNKNOWN GOAL=ESCAPE 04774_ Receiving FarCom transmissions... 04803_ S-10 Pest destroyed. 04807_ Flight Unit melted. 04807_ S-10 Pest destroyed. Map ----- +----------------------------------------------------+ | | | | | | | | | | | | | | | | | | | | | | | | | | | | | ?????????????????????????????????????????????????? | | ???????????????????????????????????###???????????? | | ??????????????????????????????????# #???????????? | | ???????????????????######????????? ??? ???????? | | ?????????####?????## ##??????? """ #??????? | | ??????#### #????# #??????? """ #???????? | | ?# ### ##??# #??????# """ #????????? | | ?# #??# #??##### #?????????? | | ?# #???# #### #??????????? | | ????# ##### ## #???????????? | | ?????# #???????????? | | ??????## ## @ ## #???????????? | | ???????????## ###### ;### ##???????????? | | ????????????#####????## ;;#?## #????????????? | | ??????????????????????# ; ???? ??????????? | | ??????????????????????# ; #??? ????????? | | ??????????????????????# # #????# #######???????? | | ??????????????????????# #???????###?????????????? | | ??????????????????????# #???????????????????????? | | ??????????????????????; #???????????????????????? | | ??????????????????????; #???????????????????????? | | ??????????????????????s #???????????????????????? | | ?????????????????????= #???????????????????????? | | ????????????????????? ##???????????????????????? | | ????????????????????? ?????????????????????????? | | ????????????????????? ?????????????????????????? | | ??????????????????????? ?????????????????????????? | | ?????????????????????????????????????????????????? | | ?????????????????????????????????????????????????? | | ?????????????????????????????????????????????????? | | ?????????????????????????????????????????????????? | | ?????????????????????????????????????????????????? | | ?????????????????????????????????????????????????? | | ?????????????????????????????????????????????????? | | ?????????????????????????????????????????????????? | | ?????????????????????????????????????????????????? | +----------------------------------------------------+ Best States ------------- Heat Dissipation 38 Energy Generation 18 Energy Capacity 280 Matter Stores 500 Matter Capacity 500 Sight Range 16 Terrain Scan Density 10 Evasion (%) 55 Targeting Accuracy 6 Recoil Reduction 2 Item Schematics ----------------- None Robot Schematics ------------------ None Fabricated ------------ Nothing Repaired ---------- Nothing Studied --------- None Alien Tech Used ----------------- None Achievements -------------- Armchair Analyst Challenges ------------ None Game ------ Seed ThermalGravjetAirjet Manual? 0 Play Time 00:56:37 Cumulative 28.6 hours Start 2026.04.09 @ 23:38:55 End 2026.04.10 @ 00:40:58 Sessions 1 Manual Loads 0 Difficulty Rogue Special Mode None Game No. 81 Rogue 81 Adventurer 0 Explorer 0 Win Type - Total 0 Types 0/0/0/0/0/0/0/0/0/0 Lore% 13 Gallery% 22 Achievement% 14 Wizard Run 0 Options --------- Layout 1 ASCII 0 Keyboard 0 Movement Vi Keybinds 0 Fullscreen 0 Font 16/TamsynBold Map View 64x42 Zoom Use 0% Tactical HUD 1 Map Filters NONE Filters NONE Steam 1 RUN: c01b2703-dddb-4047-9932-d62c12cca705